bitfinex/quotes_BTCUSD_20250313
["timestamp","ask_amount","ask_price","bid_price","bid_amount"]
[1741855521996,0.0825,82827.0,82822.0,0.012074]
[1741855522233,0.253545,82826.0,82820.0,0.0234124]
[1741855522807,0.0825,82827.0,82826.0,0.012073]
[1741855523010,0.3825,82827.0,82824.0,0.241475]
[1741855523236,0.0825,82827.0,82824.0,0.253548]
[1741855523522,0.24147,82826.0,82820.0,0.0184124]
[1741855523732,0.241477,82824.0,82820.0,0.0003384]
[1741855523951,0.012074,82821.0,82820.0,0.0003384]
[1741855524136,0.312074,82821.0,82820.0,0.0003384]
[1741855524285,0.3,82821.0,82820.0,0.0003384]
[1741855524641,0.0825,82827.0,82822.0,0.012074]
[1741855524870,0.0825,82827.0,82821.0,0.241484]
[1741855524871,0.3,82825.0,82821.0,0.241484]
[1741855525043,0.553548,82825.0,82820.0,0.0154124]
[1741855525246,0.553548,82825.0,82820.0,0.0003384]
[1741855525449,0.241477,82824.0,82820.0,0.0043384]
[1741855525650,0.312073,82825.0,82820.0,0.2618974]
[1741855525853,0.012074,82821.0,82820.0,0.0043384]
[1741855526463,0.253548,82824.0,82820.0,0.0043384]
[1741855526658,0.24148,82823.0,82820.0,0.0043384]
[1741855526983,0.253558,82822.0,82820.0,0.0003384]
[1741855527390,0.253558,82822.0,82820.0,0.0033384]
[1741855527546,0.0825,82827.0,82822.0,0.012074]
[1741855527747,0.241448,82834.0,82822.0,0.012074]
[1741855527748,0.08116952,82833.0,82830.0,0.253528]
[1741855528018,0.3,82832.0,82829.0,0.012073]
[1741855528183,0.08116952,82833.0,82830.0,0.241456]
[1741855528384,0.00016952,82833.0,82832.0,0.253524]
[1741855528799,0.00016952,82833.0,82832.0,0.42046619]
[1741855529387,0.00016952,82833.0,82832.0,0.62046619]
[1741855530452,0.00016952,82833.0,82832.0,0.63500704]
[1741855530657,5.2e-07,82833.0,82832.0,0.66000704]
[1741855531016,5.2e-07,82833.0,82832.0,0.66400704]
[1741855531268,5.2e-07,82833.0,82832.0,0.66000704]
[1741855531580,5.2e-07,82833.0,82832.0,0.96600704]
[1741855531702,5.2e-07,82833.0,82832.0,0.99700704]
[1741855531909,5.2e-07,82833.0,82832.0,1.06930704]
[1741855532113,5.2e-07,82833.0,82832.0,1.47700704]
[1741855532310,5.2e-07,82833.0,82832.0,1.52660231]
[1741855532515,0.0008,82869.0,82868.0,0.253414]
[1741855532766,0.00092483,82869.0,82868.0,0.37335619]
[1741855532915,0.00092483,82869.0,82868.0,0.51855619]
[1741855533342,0.00092483,82869.0,82868.0,0.14516]
[1741855533544,0.00092483,82869.0,82868.0,0.157227]
[1741855533947,0.00092483,82869.0,82868.0,0.398574]
[1741855534729,0.00092483,82869.0,82868.0,0.404574]
[1741855534929,0.00092483,82869.0,82868.0,0.398574]
[1741855535403,0.00092483,82869.0,82868.0,0.52651619]
[1741855535713,3.3e-07,82872.0,82871.0,0.10390685]
[1741855535937,3.3e-07,82872.0,82871.0,0.22505535]
[1741855536469,3.3e-07,82872.0,82871.0,0.29955535]
[1741855536676,3.3e-07,82872.0,82871.0,0.29834904]
[1741855537201,3.3e-07,82872.0,82871.0,1.79834904]
[1741855538382,3.3e-07,82872.0,82871.0,1.80434904]
[1741855539386,3.3e-07,82872.0,82871.0,1.81034904]
[1741855540209,3.3e-07,82872.0,82871.0,2.11034904]
[1741855540817,3.3e-07,82872.0,82871.0,2.10434904]
[1741855541027,3.3e-07,82872.0,82871.0,2.09834904]
[1741855541209,3.3e-07,82872.0,82871.0,2.10434904]
[1741855541415,3.3e-07,82872.0,82871.0,2.11034904]
[1741855541603,3.3e-07,82872.0,82871.0,2.10434904]
[1741855542006,3.3e-07,82872.0,82871.0,2.11034904]
[1741855543942,3.3e-07,82872.0,82871.0,2.10434904]
[1741855544141,3.3e-07,82872.0,82871.0,2.09834904]
[1741855544349,3.3e-07,82872.0,82871.0,2.10434904]
[1741855544547,3.3e-07,82872.0,82871.0,2.11034904]
[1741855544747,3.3e-07,82872.0,82871.0,2.10434904]
[1741855545197,3.3e-07,82872.0,82871.0,2.11034904]
[1741855547607,3.3e-07,82872.0,82871.0,2.10434904]
[1741855547801,3.3e-07,82872.0,82871.0,2.11034904]
[1741855548016,3.3e-07,82872.0,82871.0,2.10434904]
[1741855548799,3.3e-07,82872.0,82871.0,2.10654904]
[1741855549005,3.3e-07,82872.0,82871.0,2.87266904]
[1741855549326,3.3e-07,82872.0,82871.0,2.87866904]
[1741855553614,3.3e-07,82872.0,82871.0,3.31736904]
[1741855554654,3.3e-07,82872.0,82871.0,3.31136904]
[1741855555024,3.3e-07,82872.0,82871.0,3.30536904]
[1741855555204,3.3e-07,82872.0,82871.0,3.31136904]
[1741855556849,3.3e-07,82872.0,82871.0,3.31170724]
[1741855558316,3.3e-07,82872.0,82871.0,3.30570724]
[1741855559300,3.3e-07,82872.0,82871.0,3.31170724]
[1741855559751,3.3e-07,82872.0,82871.0,3.30570724]
[1741855560091,3.3e-07,82872.0,82871.0,3.31170724]
[1741855561619,0.02333333,82898.0,82871.0,3.31170724]
[1741855561620,6.6e-07,82898.0,82897.0,0.212063]
[1741855561847,0.00012545,82898.0,82897.0,0.7194742]
[1741855562007,0.00012545,82898.0,82897.0,0.73280904]
[1741855562201,0.00012545,82898.0,82897.0,2.23280904]
[1741855563037,0.00012545,82898.0,82897.0,2.01826819]
[1741855563238,0.00012545,82898.0,82897.0,2.03026819]
[1741855563412,0.00012545,82898.0,82897.0,2.79618819]
[1741855566949,0.00012545,82898.0,82897.0,2.27792]
[1741855566950,0.07542545,82898.0,82897.0,2.27792]
[1741855567145,0.07542545,82898.0,82897.0,2.42288]
[1741855567344,0.07542545,82898.0,82897.0,0.92288]
[1741855567611,0.07542545,82898.0,82897.0,0.95958444]
[1741855567717,0.07542545,82898.0,82897.0,2.57952663]
[1741855567919,0.07542545,82898.0,82897.0,2.57352663]
[1741855568299,0.07559455,82898.0,82897.0,2.57352663]
[1741855569142,0.07559455,82898.0,82897.0,0.76592]
[1741855569352,0.07559455,82898.0,82897.0,0.777983]
[1741855569566,0.07559455,82898.0,82897.0,0.781983]
[1741855569747,0.07559455,82898.0,82897.0,0.76992]
[1741855570102,0.07559455,82898.0,82897.0,0.781983]
[1741855570297,0.07559455,82898.0,82897.0,0.785983]
[1741855572005,0.00029455,82898.0,82897.0,0.90592519]
[1741855572211,5.5e-07,82898.0,82897.0,1.12046604]
[1741855572411,0.00088,82909.0,82897.0,1.12046604]
[1741855572412,0.00088,82909.0,82908.0,0.253292]
[1741855572619,0.0001692,82912.0,82911.0,0.253283]
[1741855572825,0.0001692,82912.0,82911.0,0.398243]
[1741855573038,0.0001692,82912.0,82911.0,0.51818519]
[1741855573264,0.0769,82926.0,82915.0,0.25327]
[1741855573432,0.0769,82926.0,82925.0,0.25324]
[1741855573855,0.07731587,82926.0,82925.0,0.25324]
[1741855574233,0.07731587,82926.0,82922.0,0.253248]
[1741855574234,0.07731587,82926.0,82922.0,0.241189]
[1741855574431,0.07731587,82926.0,82922.0,0.253248]
[1741855574751,0.07731587,82926.0,82923.0,0.14496]
[1741855575546,0.07731587,82926.0,82925.0,0.25324]
[1741855576127,0.07731587,82926.0,82924.0,0.012059]
[1741855576523,0.07731587,82926.0,82923.0,0.14496]
[1741855576724,0.012059,82924.0,82923.0,0.14496]
[1741855576963,0.012059,82924.0,82923.0,0.14796]
[1741855577757,0.012059,82924.0,82923.0,0.14496]
[1741855578004,0.31849587,82926.0,82923.0,0.14896]
[1741855578420,0.07731587,82926.0,82925.0,0.012059]
[1741855578716,0.00041587,82926.0,82925.0,0.012059]
[1741855579359,0.00041587,82926.0,82925.0,0.13200119]
[1741855579791,0.00058497,82926.0,82925.0,0.13200119]
[1741855579997,0.00058497,82926.0,82925.0,0.002]
[1741855580451,0.00058497,82926.0,82925.0,0.012059]
[1741855580626,0.00058497,82926.0,82925.0,0.018059]
[1741855580822,0.00058497,82926.0,82925.0,0.13800119]
[1741855581040,0.00058497,82926.0,82925.0,0.14400119]
[1741855581410,0.00058497,82926.0,82925.0,0.13800119]
[1741855581808,0.00058497,82926.0,82925.0,0.018059]
[1741855582216,0.00058497,82926.0,82925.0,0.023059]
[1741855582379,0.00058497,82926.0,82925.0,0.167979]
[1741855582580,0.00058497,82926.0,82925.0,0.162979]
[1741855582846,0.00058497,82926.0,82925.0,0.167979]
[1741855583399,0.00058497,82926.0,82925.0,0.15592]
[1741855583780,0.01264297,82926.0,82925.0,0.15592]
[1741855584013,0.00058497,82926.0,82925.0,0.167979]
[1741855585732,0.00058497,82926.0,82925.0,0.28792119]
[1741855585945,0.00058497,82926.0,82925.0,0.167979]
[1741855586747,0.00058497,82926.0,82925.0,0.156979]
[1741855586913,0.00058497,82926.0,82925.0,0.14492]
[1741855587112,0.00058497,82926.0,82925.0,0.398061]
[1741855587314,0.00058497,82926.0,82925.0,0.41012]
[1741855587558,0.00058497,82926.0,82925.0,0.15688]
[1741855587778,0.00058497,82926.0,82925.0,0.162939]
[1741855587981,0.00058497,82926.0,82925.0,0.168939]
[1741855588428,0.00058497,82926.0,82925.0,0.162939]
[1741855588828,0.00058497,82926.0,82925.0,0.167939]
[1741855590729,0.00058497,82926.0,82925.0,0.28788119]
[1741855591133,0.00058497,82926.0,82925.0,1.78788119]
[1741855591534,0.00058497,82926.0,82925.0,1.65588]
[1741855591796,0.00058497,82926.0,82925.0,1.667939]
[1741855592000,0.00058497,82926.0,82925.0,1.662939]
[1741855592360,0.00058497,82926.0,82925.0,1.668939]
[1741855592703,0.00058497,82926.0,82925.0,1.656939]
[1741855592905,0.00058497,82926.0,82925.0,0.156939]
[1741855593126,0.00058497,82926.0,82925.0,0.023059]
[1741855593576,0.08368497,82926.0,82925.0,0.14988]
[1741855594019,0.08368497,82926.0,82925.0,0.167939]
[1741855594414,0.08368497,82926.0,82925.0,0.15588]
[1741855595166,0.39574297,82926.0,82925.0,0.011]
[1741855595708,0.39574297,82926.0,82925.0,0.006]
[1741855595914,0.012059,82922.0,82921.0,0.76572]
[1741855596167,0.55324,82925.0,82921.0,0.76572]
[1741855596409,0.312059,82925.0,82921.0,0.76572]
[1741855596600,0.012059,82924.0,82921.0,0.76572]
[1741855596799,0.3,82923.0,82921.0,0.76572]
[1741855597146,0.3,82923.0,82921.0,0.76672]
[1741855597346,0.08368497,82926.0,82925.0,0.012059]
[1741855597812,0.00058497,82926.0,82925.0,0.25324]
[1741855599131,0.02333333,82934.0,82925.0,0.25324]
[1741855599132,0.02333333,82934.0,82933.0,0.253215]
[1741855599332,0.02345804,82934.0,82933.0,0.398095]
[1741855599833,0.02345804,82934.0,82933.0,0.156937]
[1741855600742,0.02345804,82934.0,82933.0,0.161937]
[1741855601280,0.02345804,82934.0,82933.0,0.156937]
[1741855601504,0.02345804,82934.0,82933.0,0.160937]
[1741855601898,0.02345804,82934.0,82933.0,0.1849205]
[1741855602266,0.02345804,82934.0,82933.0,0.1879205]
[1741855602500,0.02345804,82934.0,82933.0,0.1849205]
[1741855602905,0.02345804,82934.0,82933.0,0.1879205]
[1741855604864,0.02362714,82934.0,82933.0,0.0430405]
[1741855605108,0.02362714,82934.0,82933.0,0.1878805]
[1741855606865,0.02362714,82934.0,82933.0,0.1838805]
[1741855607070,0.02362714,82934.0,82933.0,0.1898805]
[1741855607949,0.02362714,82934.0,82933.0,0.30982269]
[1741855608139,1.4e-07,82934.0,82933.0,0.55602269]
[1741855608321,1.4e-07,82934.0,82933.0,0.64396354]
[1741855608491,1.4e-07,82934.0,82933.0,2.44396354]
[1741855608679,1.4e-07,82934.0,82933.0,2.4866133]
[1741855608885,1.4e-07,82934.0,82933.0,2.4816133]
[1741855609323,1.4e-07,82934.0,82933.0,2.44996354]
[1741855609725,1.4e-07,82934.0,82933.0,2.43796354]
[1741855610065,1.4e-07,82934.0,82933.0,0.16798269]
[1741855610386,1.4e-07,82934.0,82933.0,0.5551863]
[1741855610619,1.4e-07,82934.0,82933.0,0.54798069]
[1741855610777,1.4e-07,82934.0,82933.0,0.64532154]
[1741855610988,1.4e-07,82934.0,82933.0,0.63678069]
[1741855611510,1.4e-07,82934.0,82933.0,0.63078069]
[1741855611712,1.4e-07,82934.0,82933.0,0.62478069]
[1741855612120,1.4e-07,82934.0,82933.0,0.64532154]
[1741855612274,1.4e-07,82934.0,82933.0,0.63932154]
[1741855612478,1.4e-07,82934.0,82933.0,0.68662154]
[1741855612708,0.0125602,82954.0,82953.0,0.253155]
[1741855612908,0.0125602,82954.0,82953.0,0.397995]
[1741855614401,0.0125602,82954.0,82953.0,0.51793719]
[1741855614574,0.0125602,82954.0,82953.0,0.52393719]
[1741855614731,0.0125602,82954.0,82953.0,0.57013719]
[1741855615155,0.0125602,82954.0,82953.0,0.57613719]
[1741855615358,0.0125602,82954.0,82953.0,0.57013719]
[1741855615741,0.0125602,82954.0,82953.0,0.57613719]
[1741855615936,0.0125602,82954.0,82953.0,0.403995]
[1741855616408,0.0125602,82954.0,82953.0,0.409995]
[1741855616828,0.0125602,82954.0,82953.0,0.403995]
[1741855617036,0.0127295,82954.0,82953.0,0.403995]
[1741855617258,0.0127295,82954.0,82953.0,0.408995]
[1741855617411,0.0127295,82954.0,82953.0,0.15584]
[1741855617624,0.0127295,82954.0,82953.0,0.03068505]
[1741855617790,0.0127295,82954.0,82953.0,0.17548505]
[1741855618007,0.1077835,82954.0,82953.0,0.1568]
[1741855618216,0.1077835,82954.0,82953.0,0.1508]
[1741855618523,0.4077835,82954.0,82953.0,0.1558]
[1741855618722,0.4077835,82954.0,82953.0,0.006]
[1741855619186,0.4077835,82954.0,82953.0,0.01]
[1741855619418,0.3957295,82954.0,82953.0,0.004]
[1741855619616,0.3957295,82954.0,82948.0,0.777655]
[1741855619617,0.3,82953.0,82948.0,0.777655]
[1741855619803,0.3,82953.0,82952.0,0.012055]
[1741855619957,0.0127295,82954.0,82953.0,0.253155]
[1741855621448,0.0127295,82954.0,82953.0,0.255155]
[1741855622685,0.0127295,82954.0,82953.0,0.253155]
[1741855622882,0.0127295,82954.0,82953.0,0.258155]
[1741855623146,0.0127295,82954.0,82953.0,0.38309719]
[1741855623884,0.0127295,82954.0,82953.0,0.37809719]
[1741855624319,0.0127295,82954.0,82953.0,0.38409719]
[1741855624530,0.0127295,82954.0,82953.0,0.37909719]
[1741855625028,0.0127295,82954.0,82953.0,0.265155]
[1741855626232,0.0127295,82954.0,82953.0,0.253155]
[1741855626608,0.0127295,82954.0,82953.0,0.264155]
[1741855627206,0.0127295,82954.0,82953.0,1.88409719]
[1741855628329,0.0127295,82954.0,82953.0,1.89863804]
[1741855628513,0.0127295,82954.0,82953.0,1.89363804]
[1741855628911,0.0127295,82954.0,82953.0,1.89963804]
[1741855629182,7e-07,82955.0,82954.0,0.095054]
[1741855629332,7e-07,82955.0,82954.0,0.28024222]
[1741855629544,7e-07,82955.0,82954.0,0.27903704]
[1741855629761,7e-07,82955.0,82954.0,1.77903704]
[1741855631164,7e-07,82955.0,82954.0,1.91525619]
[1741855631883,7e-07,82955.0,82954.0,1.77649619]
[1741855632145,7e-07,82955.0,82954.0,1.91525619]
[1741855632395,7e-07,82955.0,82954.0,1.83825619]
[1741855632614,7e-07,82955.0,82954.0,1.68749619]
[1741855632847,7e-07,82955.0,82954.0,0.33221619]
[1741855633623,7e-07,82955.0,82954.0,0.32621619]
[1741855633847,7e-07,82955.0,82954.0,0.33221619]
[1741855634710,7e-07,82955.0,82954.0,0.33821619]
[1741855636516,7e-07,82955.0,82954.0,0.19349619]
[1741855636985,7e-07,82955.0,82954.0,0.168774]
[1741855638322,7e-07,82955.0,82954.0,1.668774]
[1741855638946,0.2531487,82955.0,82954.0,0.012]
[1741855639117,0.6807487,82955.0,82954.0,0.012]
[1741855640509,0.0787007,82955.0,82954.0,0.024054]
[1741855640702,0.0787007,82955.0,82954.0,0.012]
[1741855640991,0.0787007,82955.0,82954.0,0.024054]
[1741855641144,0.0787007,82955.0,82954.0,0.265151]
[1741855641467,7e-07,82955.0,82954.0,0.265151]
[1741855642453,7e-07,82955.0,82954.0,0.012]
[1741855643013,0.2531487,82955.0,82954.0,0.012]
[1741855643424,0.3316487,82955.0,82954.0,0.012]
[1741855643831,0.6316487,82955.0,82954.0,0.012]
[1741855644866,0.553155,82953.0,82952.0,0.0003386]
[1741855645290,0.3,82953.0,82952.0,0.0123936]
[1741855645431,0.312055,82953.0,82952.0,0.0003386]
[1741855645868,0.553155,82953.0,82952.0,0.0003386]
[1741855646881,0.553155,82953.0,82952.0,0.0033386]
[1741855647264,0.3,82953.0,82952.0,0.0033386]
[1741855647456,7e-07,82955.0,82953.0,0.2411]
[1741855647880,7e-07,82955.0,82952.0,0.0173936]
[1741855647881,7e-07,82955.0,82952.0,0.0053386]
[1741855648082,7e-07,82955.0,82953.0,0.2411]
[1741855648295,7e-07,82955.0,82952.0,0.0053386]
[1741855648610,0.2410967,82955.0,82952.0,0.0003386]
[1741855648810,7e-07,82955.0,82953.0,0.002]
[1741855649547,0.253151,82954.0,82953.0,0.002]
[1741855649907,0.253151,82954.0,82953.0,0.004]
[1741855650112,0.553151,82954.0,82953.0,0.004]
[1741855650664,0.553151,82954.0,82953.0,0.002]
[1741855650850,0.312055,82953.0,82952.0,0.0003386]
[1741855651025,0.312055,82953.0,82952.0,0.0023386]
[1741855651450,0.312055,82953.0,82952.0,0.0003386]
[1741855651842,0.3000007,82955.0,82952.0,0.2414396]
[1741855652054,0.3000007,82955.0,82952.0,0.2534946]
[1741855652223,0.3000007,82955.0,82953.0,0.253153]
[1741855652429,0.3000007,82955.0,82954.0,0.012054]
[1741855652692,0.012055,82953.0,82952.0,0.0023386]
[1741855653027,7e-07,82955.0,82952.0,0.0023386]
[1741855653271,7e-07,82955.0,82954.0,0.253151]
[1741855653854,7e-07,82955.0,82953.0,0.012055]
[1741855654434,7e-07,82955.0,82953.0,0.014055]
[1741855654661,7e-07,82955.0,82953.0,0.255153]
[1741855654863,7e-07,82955.0,82954.0,0.012054]
[1741855656651,0.012054,82960.0,82955.0,0.0063063]
[1741855656907,0.241087,82958.0,82955.0,0.0063063]
[1741855657106,0.012054,82956.0,82955.0,0.0063063]
[1741855657800,0.093754,82956.0,82955.0,0.0063063]
[1741855657982,0.393754,82956.0,82955.0,0.0083063]
[1741855658189,0.393754,82956.0,82955.0,0.0063063]
[1741855658588,0.393754,82956.0,82955.0,0.0073063]
[1741855658921,0.393754,82956.0,82955.0,0.0063063]
[1741855659105,0.393754,82956.0,82955.0,0.0073063]
[1741855659730,0.393754,82956.0,82955.0,0.001]
[1741855660030,0.393754,82956.0,82955.0,0.003]
[1741855660435,0.553155,82953.0,82952.0,0.0003386]
[1741855661691,0.3,82953.0,82952.0,0.0013386]
[1741855662047,0.3,82953.0,82952.0,0.0023386]
[1741855662248,0.0766,82961.0,82952.0,0.0023386]
[1741855662249,0.01191049,82963.0,82957.0,0.012054]
[1741855662455,0.01191049,82963.0,82960.0,0.253131]
[1741855662656,0.01191049,82963.0,82962.0,0.253127]
[1741855663400,0.01191049,82963.0,82960.0,0.253131]
[1741855663590,0.01191049,82963.0,82962.0,0.241074]
[1741855663797,0.01191049,82963.0,82960.0,0.253131]
[1741855663967,0.01191049,82963.0,82961.0,0.253127]
[1741855664153,0.01191049,82963.0,82962.0,0.012053]
[1741855664349,0.01191049,82963.0,82962.0,0.014053]
[1741855664780,0.01191049,82963.0,82962.0,0.012053]
[1741855664999,0.00012466,82963.0,82962.0,0.013053]
[1741855665353,0.01239957,82963.0,82962.0,0.001]
[1741855665565,0.00012466,82963.0,82962.0,0.001]
[1741855665891,0.00012466,82963.0,82962.0,0.013053]
[1741855666897,0.00012466,82963.0,82962.0,0.015053]
[1741855668609,0.01131458,82963.0,82962.0,0.015053]
[1741855671378,0.02336758,82963.0,82962.0,0.003]
[1741855672137,0.32336758,82963.0,82962.0,0.003]
[1741855672542,0.31131458,82963.0,82962.0,0.244074]
[1741855672745,0.01131458,82963.0,82962.0,0.256127]
[1741855674377,0.01131458,82963.0,82962.0,0.003]
[1741855676109,0.01131458,82963.0,82962.0,0.015053]
[1741855676391,0.01131458,82963.0,82962.0,0.003]
[1741855677674,0.01148388,82963.0,82962.0,0.003]
[1741855678611,0.01148388,82963.0,82962.0,0.015053]
[1741855678808,0.00517788,82963.0,82962.0,0.256127]
[1741855680977,0.00517788,82963.0,82962.0,0.28076385]
[1741855681178,0.00517788,82963.0,82962.0,1.90070604]
[1741855681741,0.00517788,82963.0,82962.0,1.89970604]
[1741855682441,0.00517788,82963.0,82962.0,1.89770604]
[1741855682649,0.00517788,82963.0,82962.0,1.90170604]
[1741855683029,0.00517788,82963.0,82962.0,1.97850604]
[1741855683183,0.0001693,82963.0,82962.0,1.97850604]
[1741855683706,0.0001693,82963.0,82962.0,2.02650604]
[1741855684072,0.0001693,82963.0,82962.0,0.52050604]
[1741855684475,0.0001693,82963.0,82962.0,0.52650604]
[1741855684657,0.0001693,82963.0,82962.0,2.02650604]
[1741855685431,0.0001691,82981.0,82980.0,0.253072]
[1741855685634,0.005,83000.0,82980.0,0.253072]
[1741855685635,0.01225019,82997.0,82994.0,0.25303]
[1741855685834,0.00029374,82995.0,82994.0,0.25303]
[1741855687345,0.00029374,82995.0,82994.0,1.75403]
[1741855688288,0.00029374,82995.0,82994.0,1.75503]
[1741855688486,0.00029374,82995.0,82994.0,1.75403]
[1741855688925,0.00029374,82995.0,82994.0,1.75603]
[1741855689115,0.00029374,82995.0,82994.0,1.75503]
[1741855689431,0.00029374,82995.0,82994.0,1.89767]
[1741855689646,0.00029374,82995.0,82994.0,1.90067]
[1741855689996,0.00029374,82995.0,82994.0,1.89767]
[1741855690416,0.00029374,82995.0,82994.0,1.90167]
[1741855690616,0.00029374,82995.0,82994.0,1.98277]
[1741855690840,7.4e-07,82995.0,82994.0,2.10571219]
[1741855691241,7.4e-07,82995.0,82994.0,2.10271219]
[1741855691465,7.4e-07,82995.0,82994.0,2.10571219]
[1741855691863,7.4e-07,83000.0,82999.0,0.502614]
[1741855692068,7.4e-07,83000.0,82999.0,0.71819704]
[1741855692203,7.4e-07,83000.0,82999.0,0.70365619]
[1741855692422,7.4e-07,83000.0,82999.0,2.21819704]
[1741855693683,7.4e-07,83000.0,82999.0,2.22419704]
[1741855694333,7.4e-07,83000.0,82999.0,2.21565619]
[1741855694532,7.4e-07,83000.0,82999.0,2.20965619]
[1741855694699,7.4e-07,83000.0,82999.0,2.20365619]
[1741855694860,7.4e-07,83000.0,82999.0,2.20965619]
[1741855695263,7.4e-07,83000.0,82999.0,0.302614]
[1741855695488,7.4e-07,83000.0,82999.0,0.453214]
[1741855695951,7.4e-07,83000.0,82999.0,0.459214]
[1741855696151,7.4e-07,83000.0,82999.0,0.1566]
[1741855696355,7.4e-07,83000.0,82999.0,0.024048]
[1741855696583,7.4e-07,83000.0,82999.0,0.1506]
[1741855696771,7.4e-07,83000.0,82999.0,0.162648]
[1741855697408,7.4e-07,83000.0,82999.0,1.656648]
[1741855697621,7.4e-07,83000.0,82999.0,1.662648]
[1741855697830,0.01204874,83000.0,82999.0,1.6536]
[1741855698004,7.4e-07,83000.0,82999.0,1.6506]
[1741855699129,7.4e-07,83000.0,82999.0,1.6486]
[1741855699452,7.4e-07,83000.0,82999.0,1.6526]
[1741855700103,7.4e-07,83000.0,82999.0,0.160648]
[1741855700307,7.4e-07,83000.0,82999.0,0.156648]
[1741855700510,7.4e-07,83000.0,82999.0,0.159648]
[1741855700733,7.4e-07,83000.0,82999.0,0.162648]
[1741855702090,0.00017004,83000.0,82999.0,0.162648]
[1741855703877,0.00017004,83000.0,82999.0,0.156648]
[1741855704106,0.00017004,83000.0,82999.0,0.160648]
[1741855704315,0.00017004,83000.0,82999.0,0.164608]
[1741855707634,0.00017004,83000.0,82999.0,1.664608]
[1741855707862,0.00017004,83000.0,82999.0,1.508]
[1741855708101,0.00017004,83000.0,82999.0,0.15256]
[1741855708102,0.09181804,83000.0,82999.0,0.15256]
[1741855708313,0.00017004,83000.0,82999.0,0.15256]
[1741855708532,0.00017004,83000.0,82999.0,0.164608]
[1741855709192,0.00017004,83000.0,82999.0,0.160608]
[1741855709414,0.01221804,83000.0,82999.0,0.004]
[1741855709650,0.01221804,83000.0,82999.0,0.14656]
[1741855709990,0.01221804,83000.0,82999.0,0.14856]
[1741855710219,0.31221804,83000.0,82999.0,0.004]
[1741855712548,0.00017004,83000.0,82999.0,0.004]
[1741855712757,0.01221804,83000.0,82999.0,0.004]
[1741855713258,0.31221804,83000.0,82999.0,0.004]
[1741855717472,0.00017004,83000.0,82999.0,0.004]
[1741855718037,0.31221804,83000.0,82999.0,0.004]
[1741855718568,0.3,82998.0,82995.0,0.1440784]
[1741855718687,0.012048,82999.0,82995.0,0.1344384]
[1741855718892,0.253019,82998.0,82995.0,0.1344384]
[1741855719105,0.312048,82996.0,82995.0,0.1344384]
[1741855719924,0.3,82996.0,82995.0,0.1364384]
[1741855720146,0.553016,82999.0,82995.0,0.1364384]
[1741855720355,0.553016,82999.0,82995.0,0.1344384]
[1741855720554,0.312048,82997.0,82995.0,0.1344384]
[1741855720753,0.312048,82997.0,82995.0,0.1374384]
[1741855721316,0.312048,82997.0,82995.0,0.1344384]
[1741855721456,0.553022,82997.0,82995.0,0.1364384]
[1741855721651,0.553022,82997.0,82995.0,0.1344384]
[1741855721863,0.012048,82996.0,82995.0,0.1344384]
[1741855722082,0.012048,82996.0,82995.0,0.002]
[1741855722284,0.095048,82996.0,82995.0,0.002]
[1741855722488,0.18078885,82996.0,82995.0,0.002]
[1741855722726,0.141248,82996.0,82995.0,0.004]
[1741855722926,0.00017004,83000.0,82995.0,0.002]
[1741855723160,0.3,82999.0,82995.0,0.002]
[1741855723361,0.240983,82994.0,82989.0,0.012049]
[1741855723536,0.312048,82999.0,82988.0,0.012049]
[1741855723780,0.00017004,83000.0,82995.0,0.012048]
[1741855723956,0.253019,82998.0,82996.0,0.14456]
[1741855724181,0.012048,82997.0,82996.0,0.14456]
[1741855725032,0.012048,82997.0,82996.0,0.14656]
[1741855725261,0.240971,82998.0,82996.0,0.14656]
[1741855725505,0.012048,82997.0,82996.0,0.14456]
[1741855726192,0.253023,82997.0,82996.0,0.002]
[1741855726716,0.012048,82996.0,82995.0,0.1448984]
[1741855727696,0.01887671,82997.0,82995.0,0.1448984]
[1741855728067,0.01887671,82997.0,82995.0,0.1458984]
[1741855728492,0.01887671,82997.0,82996.0,0.240975]
[1741855728782,0.01887671,82997.0,82996.0,0.253023]
[1741855729788,0.01887671,82997.0,82996.0,0.301623]
[1741855729993,0.01887671,82997.0,82996.0,0.302623]
[1741855730401,0.01887671,82997.0,82996.0,0.301623]
[1741855730825,0.01887671,82997.0,82996.0,0.303623]
[1741855731025,0.01887671,82997.0,82996.0,0.002]
[1741855731225,0.03092471,82997.0,82996.0,0.002]
[1741855731447,0.01887671,82997.0,82996.0,0.002]
[1741855731847,0.01887671,82997.0,82996.0,0.003]
[1741855732253,0.012048,82996.0,82995.0,0.1448984]
[1741855733342,0.012048,82998.0,82995.0,0.1448984]
[1741855733925,0.253023,82996.0,82995.0,0.1448984]
[1741855734134,0.253023,82996.0,82995.0,0.1468984]
[1741855734769,0.253023,82996.0,82995.0,0.1478984]
[1741855735467,0.253023,82996.0,82995.0,0.1458984]
[1741855735672,0.253023,82996.0,82995.0,0.1468984]
[1741855736193,0.27189911,82996.0,82995.0,0.0013384]
[1741855736557,0.27189911,82996.0,82995.0,0.0033384]
[1741855737810,0.27206831,82996.0,82995.0,0.0033384]
[1741855738193,0.57206831,82996.0,82995.0,0.0033384]
[1741855741248,0.31904531,82996.0,82995.0,0.2563644]
[1741855741625,0.3001692,82996.0,82995.0,0.2563644]
[1741855742634,0.3001692,82996.0,82995.0,0.0033384]
[1741855742803,0.5531922,82996.0,82995.0,0.0033384]
[1741855743407,0.0001692,82996.0,82995.0,0.2563644]
[1741855743954,2.4e-07,83000.0,82999.0,0.253014]
[1741855744183,2.4e-07,83000.0,82999.0,0.384114]
[1741855745412,2.4e-07,83000.0,82999.0,0.388114]
[1741855745902,2.4e-07,83000.0,82999.0,0.393114]
[1741855746259,2.4e-07,83000.0,82999.0,0.390704]
[1741855747250,2.4e-07,83000.0,82999.0,1.890704]
[1741855748319,2.4e-07,83000.0,82999.0,1.888294]
[1741855750370,2.4e-07,83000.0,82999.0,2.032774]
[1741855751672,2.4e-07,83000.0,82999.0,0.532774]
[1741855752235,2.4e-07,83000.0,82999.0,2.032774]
[1741855752865,2.4e-07,83000.0,82999.0,1.951574]
[1741855753666,2.4e-07,83000.0,82999.0,1.5589]
[1741855753886,0.24096324,83000.0,82999.0,0.009]
[1741855754084,0.24096324,83000.0,82999.0,0.15348]
[1741855754292,2.4e-07,83000.0,82999.0,0.15348]
[1741855754516,2.4e-07,83000.0,82999.0,0.165528]
[1741855755012,2.4e-07,83000.0,82999.0,0.156528]
[1741855755148,2.4e-07,83000.0,82999.0,0.15248]
[1741855755914,2.4e-07,83000.0,82999.0,0.14848]
[1741855756146,2.4e-07,83000.0,82999.0,0.14448]